bitfinex/quotes_SOLUSD_20241010
["timestamp","ask_amount","ask_price","bid_price","bid_amount"]
[1728583390150,1.83333509,136.37,136.32,0.25098]
[1728583390380,1.83350048,136.4,136.32,0.25098]
[1728583390761,1.83350048,136.4,136.33,0.12549]
[1728583391152,1.83350048,136.4,136.32,0.12549]
[1728583391451,7.3319,136.39,136.33,7.46049]
[1728583391676,1.83350048,136.4,136.33,0.12549]
[1728583391874,7.332,136.39,136.34,0.12549]
[1728583392179,9.16490048,136.4,136.34,0.12549]
[1728583392351,6.0732,136.41,136.37,7.3328]
[1728583392551,1.83308766,136.43,136.37,0.12549]
[1728583392760,7.3309,136.41,136.36,0.12549]
[1728583392983,7.3303,136.42,136.37,0.12549]
[1728583393476,7.3298,136.43,136.38,0.12549]
[1728583393770,24.60541934,136.44,136.38,7.45789]
[1728583393977,7.3302,136.43,136.38,0.12549]
[1728583394551,7.3293,136.44,136.39,0.12549]
[1728583394758,13.7963,136.45,136.39,7.45729]
[1728583394948,7.3282,136.46,136.4,7.45669]
[1728583395153,7.3282,136.46,136.41,7.45619]
[1728583395357,7.3287,136.45,136.41,0.12549]
[1728583395570,7.3301,136.43,136.39,0.12549]
[1728583395773,7.3301,136.43,136.38,0.25098]
[1728583396369,7.3304,136.42,136.38,0.12549]
[1728583396679,1.83247675,136.46,136.36,25.6662]
[1728583396680,7.3291,136.45,136.4,0.12549]
[1728583396884,7.3303,136.42,136.36,18.3329]
[1728583397174,1.83271837,136.46,136.33,36.6747]
[1728583397584,7.3301,136.43,136.37,25.6644]
[1728583397824,7.3293,136.44,136.37,18.3316]
[1728583397964,7.3301,136.43,136.37,25.6642]
[1728583398163,7.3293,136.44,136.38,7.3319]
[1728583398360,7.3298,136.43,136.39,0.25098]
[1728583398583,7.3293,136.44,136.39,0.25098]
[1728583399458,7.3288,136.45,136.39,7.58278]
[1728583399668,7.3288,136.45,136.4,0.25098]
[1728583400285,9.16190427,136.44,136.39,0.25098]
[1728583400481,7.3303,136.42,136.38,0.25098]
[1728583400789,18.3238,136.44,136.34,48.3357]
[1728583400990,1.83275175,136.43,136.34,48.3357]
[1728583401179,7.3329,136.38,136.34,30.0]
[1728583401481,18.3261,136.42,136.34,30.0]
[1728583401482,7.333,136.37,136.34,30.0]
[1728583401892,7.333,136.37,136.31,18.3398]
[1728583401893,7.333,136.37,136.31,25.6759]
[1728583402263,7.3335,136.36,136.31,25.6759]
[1728583402489,7.3341,136.35,136.29,0.06312]
[1728583402690,7.3337,136.36,136.29,0.06312]
[1728583402863,1.83339445,136.39,136.3,18.3412]
[1728583402864,7.333,136.37,136.3,18.3412]
[1728583403072,7.333,136.37,136.31,7.3359]
[1728583403271,7.3344,136.35,136.3,18.3412]
[1728583403471,7.3344,136.35,136.3,25.6779]
[1728583404088,1.83339445,136.39,136.29,0.06312]
[1728583404269,7.3347,136.34,136.29,0.06312]
[1728583405284,1.8336761,136.37,136.29,0.06312]
[1728583405473,7.334,136.35,136.29,7.39992]
[1728583405790,18.3329,136.37,136.29,0.06312]
[1728583405994,1.83375661,136.36,136.29,0.06312]
[1728583406293,7.3359,136.32,136.29,0.06312]
[1728583406489,1.83375661,136.36,136.29,0.06312]
[1728583406670,7.3361,136.32,136.29,0.06312]
[1728583406973,7.3358,136.32,136.29,0.06312]
[1728583407177,7.3362,136.31,136.29,0.06312]
[1728583407380,1.83375661,136.36,136.29,0.06312]
[1728583407586,18.3358,136.35,136.29,0.06312]
[1728583407762,1.83385703,136.34,136.29,0.06312]
[1728583408095,7.3353,136.33,136.29,0.06312]
[1728583408484,7.3347,136.34,136.29,0.06312]
[1728583408676,7.3353,136.33,136.29,0.06312]
[1728583409091,1.8340031,136.37,136.29,0.18861]
[1728583409280,7.3339,136.36,136.32,0.12549]
[1728583409489,7.3341,136.35,136.31,0.12549]
[1728583410307,7.3341,136.35,136.3,18.46659]
[1728583410308,7.3347,136.34,136.3,0.12549]
[1728583410667,7.3342,136.35,136.3,7.46209]
[1728583410987,9.16610975,136.38,136.33,0.25098]
[1728583411193,9.16487704,136.4,136.34,7.3346]
[1728583411498,24.76661723,136.41,136.33,25.92318]
[1728583411795,7.3319,136.39,136.33,25.92318]
[1728583411983,7.3314,136.4,136.35,7.58478]
[1728583412180,7.3309,136.41,136.36,7.3334]
[1728583412692,7.3285,136.46,136.4,7.331]
[1728583412898,1.83273621,136.48,136.42,0.12549]
[1728583413065,16.5452,136.49,136.43,0.12549]
[1728583413066,18.37714487,136.49,136.43,0.12549]
[1728583413269,7.3276,136.47,136.43,0.12549]
[1728583413497,1.83194487,136.49,136.43,0.12549]
[1728583414101,24.8175,136.51,136.43,0.12549]
[1728583414102,1.83194566,136.5,136.43,0.12549]
[1728583414398,1.83168271,136.53,136.43,0.12549]
[1728583414776,7.3265,136.49,136.43,7.45509]
[1728583414971,1.83168271,136.53,136.44,0.12549]
[1728583415378,1.83168271,136.53,136.43,0.12549]
[1728583415379,20.14358271,136.53,136.42,0.25098]
[1728583415699,7.3271,136.48,136.42,0.25098]
[1728583415872,1.83201555,136.47,136.4,0.12549]
[1728583416082,7.3283,136.46,136.4,0.12549]
[1728583416392,7.3293,136.44,136.37,7.3325]
[1728583416604,1.83243921,136.46,136.38,18.3302]
[1728583416787,13.8611,136.47,136.41,7.3307]
[1728583416989,13.8611,136.47,136.4,7.3313]
[1728583417305,7.3292,136.44,136.38,18.3302]
[1728583417508,1.83215591,136.46,136.35,52.1633]
[1728583417807,7.3298,136.43,136.36,7.3334]
[1728583418002,1.83215591,136.46,136.37,7.3329]
[1728583418310,7.3292,136.44,136.37,7.3329]
[1728583418690,7.3298,136.43,136.38,0.12549]
[1728583418988,7.3293,136.44,136.38,0.12549]
[1728583419309,7.3297,136.44,136.38,7.45769]
[1728583419496,1.83215591,136.46,136.4,0.12549]
[1728583419806,7.3292,136.45,136.38,7.45789]
[1728583420008,7.3292,136.45,136.39,0.12549]
[1728583420200,1.83232389,136.44,136.34,18.3358]
[1728583420401,7.3296,136.44,136.38,0.12549]
[1728583420597,7.3296,136.44,136.39,0.12549]
[1728583421207,7.3288,136.45,136.39,0.12549]
[1728583421395,7.3288,136.45,136.4,0.12549]
[1728583421996,7.3292,136.44,136.4,0.12549]
[1728583422599,7.3296,136.44,136.4,0.12549]
[1728583423001,1.8323567,136.46,136.35,18.3343]
[1728583423213,1.83256577,136.45,136.35,18.3343]
[1728583423397,18.21246577,136.45,136.35,18.3343]
[1728583423690,7.3294,136.44,136.37,18.3315]
[1728583423895,7.3294,136.44,136.38,7.332]
[1728583424094,7.3286,136.46,136.4,7.3312]
[1728583424301,6.5332,136.47,136.37,18.3315]
[1728583424302,7.329,136.45,136.39,7.3318]
[1728583424490,7.329,136.45,136.4,0.25098]
[1728583424808,1.8323202,136.48,136.4,0.25098]
[1728583425008,18.21187763,136.49,136.42,0.12549]
[1728583425222,25.53877763,136.49,136.43,7.45519]
[1728583425813,8.23857548,136.51,136.45,0.12549]
[1728583426013,7.3271,136.48,136.45,0.12549]
[1728583426189,7.3271,136.48,136.44,0.12549]
[1728583426386,7.3266,136.49,136.45,0.12549]
[1728583428522,6.4067,136.51,136.46,7.45349]
[1728583428815,7.3253,136.52,136.47,0.12549]
[1728583428997,15.1302,136.54,136.49,7.3264]
[1728583429197,7.3239,136.54,136.49,7.3264]
[1728583429691,8.15137829,136.55,136.48,0.12549]
[1728583429998,15.4329,136.58,136.53,7.3242]
[1728583430199,15.4329,136.58,136.51,18.56378]
[1728583430200,15.4329,136.58,136.51,0.25098]
[1728583430426,15.4329,136.58,136.43,36.6465]
[1728583430427,15.4329,136.58,136.5,0.25098]
[1728583430593,7.3239,136.54,136.5,0.25098]
[1728583430910,7.3244,136.53,136.49,0.25098]
[1728583431215,18.3073,136.56,136.45,18.3208]
[1728583431389,7.326,136.5,136.46,0.12549]
[1728583431593,1.83140913,136.55,136.43,36.6465]
[1728583431796,1.83140913,136.55,136.47,18.3182]
[1728583431797,7.3244,136.53,136.47,18.3182]
[1728583432019,7.3249,136.52,136.45,7.3285]
[1728583432392,1.83140913,136.55,136.44,25.6512]
[1728583432393,7.3254,136.51,136.44,25.6512]
[1728583432608,1.83140913,136.55,136.45,0.12549]
[1728583432924,7.3261,136.5,136.46,0.12549]
[1728583433095,7.3266,136.49,136.44,25.6514]
[1728583433293,7.3274,136.48,136.42,7.3299]
[1728583433603,7.3278,136.47,136.41,18.3266]
[1728583433810,1.83170682,136.51,136.41,18.3266]
[1728583434014,7.3271,136.48,136.41,18.3266]
[1728583434398,7.3271,136.48,136.42,0.25098]
[1728583435621,1.83170682,136.51,136.42,0.25098]
[1728583435827,7.3281,136.46,136.42,0.25098]
[1728583436011,20.14718377,136.5,136.42,0.25098]
[1728583436326,7.3286,136.45,136.41,0.25098]
[1728583437100,7.3283,136.46,136.41,0.25098]
[1728583437497,7.3278,136.47,136.41,0.25098]
[1728583437717,20.14718377,136.5,136.41,24.027864]
[1728583437908,7.3283,136.46,136.41,24.027864]
[1728583438222,7.3283,136.46,136.41,0.25098]
[1728583438522,7.3276,136.47,136.41,0.25098]
[1728583438714,7.3283,136.46,136.41,0.25098]
[1728583439018,18.3154,136.5,136.41,24.027864]
[1728583439205,20.14711327,136.5,136.41,0.25098]
[1728583439406,7.3288,136.45,136.41,0.25098]
[1728583440529,7.3283,136.46,136.41,0.25098]
[1728583440698,18.46541327,136.5,136.41,0.25098]
[1728583440900,7.3295,136.44,136.4,0.25098]
[1728583441303,20.15028381,136.48,136.4,0.25098]
[1728583441506,7.3288,136.45,136.4,0.25098]
[1728583441707,7.3281,136.46,136.4,0.25098]
[1728583441905,6.4026,136.51,136.41,23.776884]
[1728583442216,1.83154933,136.5,136.44,0.25098]
[1728583442518,6.4026,136.51,136.44,0.25098]
[1728583442720,7.3263,136.5,136.46,0.12549]
[1728583442908,7.3268,136.49,136.46,0.12549]
[1728583443230,26.54795001,136.51,136.46,0.12549]
[1728583443718,7.3294,136.44,136.38,18.3303]
[1728583443902,7.3294,136.44,136.39,7.3317]
[1728583444098,7.3288,136.45,136.38,18.3303]
[1728583444498,1.83200882,136.49,136.39,7.3317]
[1728583444499,7.3292,136.44,136.39,7.3317]
[1728583444705,7.3298,136.43,136.38,18.3303]
[1728583444914,7.3293,136.44,136.38,25.6622]
[1728583445504,7.3288,136.45,136.4,7.331]
[1728583445812,18.3193,136.47,136.37,7.3328]
[1728583446000,7.3298,136.43,136.37,7.3328]
[1728583446317,7.3261,136.5,136.43,18.3242]
[1728583446512,7.3274,136.48,136.39,69.80030689]
[1728583446897,13.7281,136.51,136.46,0.12549]
[1728583447101,6.4026,136.51,136.45,0.25098]
[1728583447404,6.4026,136.51,136.45,0.12549]
[1728583447405,7.3281,136.46,136.45,0.12549]
[1728583447599,18.3151,136.5,136.42,23.902374]
[1728583447800,7.3272,136.48,136.42,23.902374]
[1728583448632,7.3272,136.48,136.43,7.3296]
[1728583448936,7.3272,136.48,136.43,0.12549]
[1728583449108,7.3279,136.47,136.43,0.12549]
[1728583449516,7.3278,136.47,136.43,0.12549]
[1728583449717,26.54795853,136.51,136.42,0.12549]
[1728583449718,8.23425853,136.51,136.42,0.12549]
[1728583450002,7.3306,136.42,136.37,7.3327]
[1728583450356,7.3306,136.42,136.36,13.9096]
[1728583450630,7.3308,136.41,136.36,13.9096]
[1728583450822,18.3218,136.45,136.36,13.9096]
[1728583451139,7.3304,136.42,136.36,13.9096]
[1728583451425,7.3309,136.41,136.36,13.9096]
[1728583452008,7.3304,136.42,136.37,7.3329]
[1728583452522,7.3299,136.43,136.38,7.58328]
[1728583452723,7.3293,136.44,136.39,7.3318]
[1728583453022,18.3187,136.48,136.4,0.25098]
[1728583453436,7.3293,136.44,136.4,0.25098]
[1728583453806,7.3288,136.45,136.4,0.25098]
[1728583454012,7.3284,136.46,136.4,7.58198]
[1728583454216,15.7914,136.53,136.41,39.80030689]
[1728583454540,7.3266,136.49,136.45,0.25098]
[1728583455438,7.3266,136.49,136.44,0.25098]
[1728583455632,7.3271,136.48,136.44,0.25098]
[1728583455834,7.3269,136.49,136.44,24.027864]
[1728583456039,7.3269,136.49,136.44,31.356964]
[1728583456215,1.83143953,136.52,136.44,0.25098]
[1728583456425,20.14413953,136.52,136.44,0.25098]
[1728583456715,7.3277,136.47,136.44,0.25098]
[1728583456915,20.14690971,136.5,136.44,0.12549]
[1728583457245,7.3282,136.46,136.44,0.12549]
[1728583457409,20.14690971,136.5,136.44,0.12549]
[1728583457863,7.3293,136.44,136.39,7.3318]
[1728583458043,18.3179,136.48,136.37,25.6638]
[1728583458044,7.3301,136.43,136.37,25.6638]
[1728583458242,18.3205,136.46,136.37,18.3314]
[1728583458446,1.8322981,136.45,136.37,18.3314]
[1728583458615,7.3309,136.41,136.36,13.9094]
[1728583458816,7.3305,136.42,136.37,37.3328]
[1728583459030,18.3386981,136.45,136.36,18.3333]
[1728583459230,6.5658,136.44,136.35,7.61111654]
[1728583459549,7.333,136.37,136.31,22.3421]
[1728583460045,7.3336,136.36,136.3,26.94988172]
[1728583460258,40.8703,136.38,136.3,1.27258172]
[1728583460418,40.8703,136.38,136.29,0.06312]
[1728583460419,1.83374714,136.37,136.29,0.06312]
[1728583460749,7.3361,136.32,136.29,0.06312]
[1728583461317,1.83374714,136.37,136.29,0.06312]
[1728583461533,1.83374714,136.37,136.31,0.12549]
[1728583461737,7.3352,136.33,136.31,0.12549]
[1728583462146,1.83374714,136.37,136.31,0.12549]
[1728583462355,7.3346,136.34,136.31,0.12549]
[1728583462520,1.83374714,136.37,136.31,0.12549]
[1728583462725,7.334,136.36,136.3,7.3366]
[1728583462923,7.3342,136.35,136.3,0.12549]
[1728583463128,24.3712696,136.38,136.3,0.12549]
[1728583463432,7.3334,136.37,136.3,7.46179]
[1728583463636,7.3334,136.37,136.32,0.25098]
[1728583463955,7.3338,136.36,136.32,0.25098]
[1728583464427,22.5379,136.38,136.32,7.58658]
[1728583464624,22.5379,136.38,136.32,0.25098]
[1728583464824,7.3339,136.36,136.32,0.25098]
[1728583465048,1.83345831,136.35,136.29,0.06312]
[1728583465374,7.3357,136.32,136.29,0.06312]
[1728583465555,7.3367,136.3,136.29,0.06312]
[1728583465916,13.7707,136.3,136.29,0.06312]
[1728583466119,15.60514815,136.3,136.29,0.06312]
[1728583467818,13.7707,136.3,136.29,0.06312]
[1728583471829,7.3365,136.31,136.29,0.06312]
[1728583472030,1.83402578,136.33,136.29,0.06312]
[1728583472234,7.3367,136.3,136.29,0.06312]
[1728583474165,7.3361,136.32,136.29,0.06312]
[1728583474472,1.83395689,136.33,136.29,0.06312]
[1728583474766,7.3367,136.3,136.29,0.06312]
[1728583480656,38.51915484,136.3,136.17,7.3437]
[1728583480859,7.3409,136.23,136.17,7.3437]
[1728583481156,18.3477,136.26,136.17,7.3437]
[1728583481157,1.8351645,136.25,136.17,7.3437]
[1728583481361,1.8351645,136.25,136.16,19.2058367]
[1728583481568,7.3431,136.19,136.16,0.8460367]
[1728583482066,7.3411,136.22,136.16,8.1902367]
[1728583482234,1.83532973,136.21,136.16,0.8460367]
[1728583482433,7.3422,136.2,136.16,0.8460367]
[1728583482666,7.3417,136.21,136.16,0.8460367]
[1728583483340,7.3433,136.18,136.16,0.8460367]
[1728583483539,7.3427,136.19,136.16,0.8460367]
[1728583483735,1.83581588,136.22,136.16,0.8460367]
[1728583483945,7.3421,136.2,136.16,0.8460367]
[1728583484144,7.3414,136.22,136.16,8.1897367]
[1728583484336,7.3422,136.2,136.16,0.8460367]
[1728583484642,7.3427,136.19,136.16,0.8460367]
[1728583484836,1.83524686,136.22,136.16,0.8460367]
[1728583484837,7.3434,136.18,136.16,0.8460367]
[1728583485036,7.3426,136.2,136.16,0.8460367]
[1728583485345,1.83567935,136.19,136.16,0.8460367]
[1728583485663,7.3437,136.17,136.16,0.8460367]
[1728583485956,1.83591524,136.2,136.16,0.8460367]
[1728583486254,7.3437,136.17,136.16,0.8460367]
[1728583486464,1.83591524,136.2,136.16,0.8460367]
[1728583486465,7.3432,136.18,136.16,0.8460367]
[1728583486645,7.3427,136.19,136.16,0.8460367]
[1728583486851,1.83572796,136.23,136.16,0.8460367]
[1728583487163,7.3422,136.2,136.16,0.8460367]
[1728583487469,1.83572796,136.23,136.16,0.8460367]
[1728583487837,7.3428,136.19,136.16,0.8460367]
[1728583488253,1.83572796,136.23,136.16,0.8460367]
[1728583489358,7.3428,136.19,136.16,0.8460367]
[1728583489753,1.83572796,136.23,136.16,0.8460367]
[1728583489949,7.3426,136.2,136.16,0.8460367]
[1728583490145,24.9976,136.24,136.16,0.8460367]
[1728583490146,7.3427,136.19,136.16,0.8460367]
[1728583490457,7.3422,136.2,136.16,0.8460367]
[1728583491468,1.83583765,136.22,136.16,0.8460367]
[1728583491469,7.3427,136.19,136.16,0.8460367]
[1728583492646,7.342,136.21,136.16,0.8460367]
[1728583492866,7.3423,136.2,136.16,0.8460367]
[1728583494163,7.3415,136.22,136.16,0.8460367]
[1728583494370,9.1764396,136.23,136.17,0.25098]
[1728583494552,1.835102,136.26,136.17,6.48518]
[1728583494865,1.83500223,136.28,136.19,0.25098]
[1728583495050,7.3404,136.24,136.19,7.59338]
[1728583495246,7.3398,136.25,136.19,7.59338]
[1728583495455,7.3384,136.27,136.2,18.3546]
[1728583495675,1.83500223,136.28,136.2,18.3546]
[1728583495676,9.17320223,136.28,136.21,0.12549]
[1728583495879,7.3386,136.27,136.23,0.12549]
[1728583496169,21.9923,136.29,136.21,0.12549]
[1728583496170,1.83465451,136.26,136.21,0.12549]
[1728583496342,7.341,136.22,136.21,0.12549]
[1728583496542,7.3405,136.23,136.2,30.0]
[1728583496755,18.3468,136.27,136.21,30.12549]
[1728583496969,7.34,136.24,136.21,30.12549]
[1728583497457,1.83500714,136.26,136.21,30.12549]
[1728583497659,1.83500714,136.26,136.21,30.0]
[1728583497977,7.341,136.22,136.21,30.0]
[1728583498949,1.83543232,136.24,136.16,0.8460367]
[1728583499152,7.3417,136.21,136.17,30.0]
[1728583499460,7.3432,136.18,136.17,30.0]
[1728583499851,7.3437,136.17,136.16,0.8460367]
[1728583500054,7.3437,136.17,136.16,30.8460367]
[1728583500388,1.83600824,136.19,136.16,0.8460367]
[1728583500585,1.83567217,136.2,136.16,0.8460367]
[1728583500757,7.3433,136.18,136.16,0.8460367]
[1728583500956,1.8360757,136.2,136.16,0.8460367]
[1728583501169,1.83551225,136.22,136.16,49.2055367]
[1728583501473,7.3423,136.2,136.16,30.8460367]
[1728583501678,1.83582147,136.22,136.16,30.8460367]
[1728583502259,7.3423,136.2,136.16,30.8460367]
[1728583502469,9.17712147,136.22,136.16,38.1901367]
[1728583502678,8.49412649,136.23,136.17,0.12549]
[1728583502918,6.6585,136.23,136.19,7.3426]
[1728583503051,1.83532435,136.24,136.18,0.12549]
[1728583503052,9.17582435,136.24,136.18,0.12549]
[1728583503380,1.83532435,136.24,136.17,0.12549]
[1728583503560,1.83532435,136.24,136.17,30.0]
[1728583503561,7.3427,136.19,136.17,30.0]
[1728583503759,9.17907293,136.18,136.17,30.0]
[1728583504062,1.83587293,136.23,136.17,30.0]
[1728583504560,6.4069,136.26,136.17,30.0]
[1728583504762,23.8426,136.28,136.22,7.3409]
[1728583504971,9.17223212,136.29,136.23,0.12549]
[1728583505180,6.4069,136.3,136.25,7.3394]
[1728583505395,6.4069,136.3,136.18,6.5574]
[1728583505396,7.3389,136.26,136.19,25.82299]
[1728583505680,7.3395,136.25,136.22,0.12549]
[1728583505876,7.34,136.24,136.2,0.12549]
[1728583506091,7.3394,136.25,136.19,18.48089]
[1728583506376,7.3394,136.25,136.21,0.12549]
[1728583506581,7.3379,136.28,136.23,0.12549]
[1728583506793,7.3379,136.28,136.23,7.3405]
[1728583506987,1.83456892,136.31,136.25,0.25098]
[1728583507176,16.5048,136.32,136.25,0.25098]
[1728583507177,18.3390669,136.32,136.25,0.25098]
[1728583507382,7.3369,136.3,136.25,0.25098]
[1728583507794,7.3369,136.3,136.25,7.59018]
[1728583507972,18.3390669,136.32,136.25,7.59018]
[1728583507973,18.3390669,136.32,136.27,7.3379]
[1728583508172,18.3390669,136.32,136.25,18.59848]
[1728583508379,7.3348,136.34,136.28,0.25098]
[1728583508595,7.3341,136.35,136.3,7.3367]
[1728583508780,7.3335,136.36,136.32,0.12549]
[1728583508984,7.3347,136.34,136.31,0.12549]
[1728583509504,7.3347,136.34,136.3,0.25098]
[1728583509673,1.83358598,136.37,136.3,0.12549]
[1728583509870,1.83358598,136.37,136.25,18.3474]
[1728583510197,21.776,136.32,136.18,22.4789]
[1728583510435,7.3393,136.26,136.21,7.3416]
[1728583510693,21.776,136.32,136.21,7.3414]
[1728583510694,7.3384,136.27,136.21,7.3414]
[1728583510895,40.1156,136.32,136.19,18.3564]
[1728583510896,1.83464664,136.31,136.19,18.3564]
[1728583511105,7.3395,136.25,136.2,7.342]
[1728583511399,7.34,136.24,136.19,18.3564]
[1728583511573,1.83483894,136.29,136.16,0.8460367]
[1728583511897,18.35,136.24,136.16,0.8460367]
[1728583512197,1.83573612,136.25,136.16,0.8460367]
[1728583512501,1.83573612,136.25,136.17,18.3583]
[1728583512700,7.34,136.24,136.19,7.3425]
[1728583512873,13.5287,136.26,136.21,7.3415]
[1728583513292,7.3396,136.25,136.19,25.6979]
[1728583513502,7.3396,136.25,136.19,18.3554]
[1728583513673,7.3399,136.24,136.19,25.698]
[1728583513874,8.27014444,136.3,136.2,0.12549]
[1728583514101,7.3411,136.22,136.16,19.2061367]
[1728583514296,9.17455054,136.26,136.18,18.3569]
[1728583514601,7.3393,136.26,136.21,7.3415]
[1728583514772,1.83497011,136.29,136.2,25.6961]
[1728583514773,7.3395,136.25,136.2,25.6961]
[1728583515494,7.3395,136.25,136.21,0.12549]
[1728583515681,7.3409,136.23,136.18,7.3427]
[1728583515877,7.3409,136.23,136.16,19.2054367]
[1728583515878,1.83494896,136.27,136.19,0.12549]
[1728583516082,18.3456,136.28,136.19,0.12549]
[1728583516083,1.83506691,136.28,136.19,0.12549]
[1728583516269,7.3399,136.25,136.2,25.6966]
[1728583516469,7.3387,136.27,136.21,0.12549]
[1728583516699,7.3387,136.27,136.22,7.3409]
[1728583516892,7.3387,136.27,136.23,0.12549]
[1728583517102,7.339,136.26,136.23,0.12549]
[1728583517280,7.3385,136.27,136.23,0.12549]
[1728583518278,7.3379,136.28,136.23,7.46599]
[1728583518595,7.3379,136.28,136.25,0.12549]
[1728583518794,1.83448861,136.27,136.15,243.00899374]
[1728583518994,7.3405,136.23,136.19,18.3563]
[1728583519302,1.83511682,136.28,136.19,18.3563]
[1728583519596,1.83511682,136.28,136.15,282.80930063]
[1728583519801,7.3379,136.28,136.23,7.34]
[1728583519977,7.3383,136.27,136.23,7.34]
[1728583520296,1.83483597,136.29,136.24,0.12549]
[1728583520606,7.3389,136.26,136.22,0.25098]
[1728583521191,7.3385,136.27,136.22,7.59198]
[1728583521586,7.339,136.26,136.22,0.25098]
[1728583521797,7.3384,136.27,136.22,7.59198]
[1728583522105,1.83483597,136.29,136.22,0.25098]
[1728583522398,7.3392,136.26,136.22,0.25098]
[1728583522596,7.3395,136.25,136.22,0.12549]
[1728583522894,7.3401,136.24,136.19,0.12549]
[1728583523104,7.3389,136.26,136.21,7.3415]
[1728583523275,1.83487373,136.28,136.22,0.12549]
[1728583523600,7.3393,136.26,136.22,0.12549]
[1728583523799,1.83487373,136.28,136.22,0.12549]
[1728583523976,7.3389,136.26,136.21,7.46689]
[1728583524381,7.3389,136.26,136.22,0.12549]
[1728583524595,7.3379,136.28,136.23,7.46589]
[1728583524796,1.83448738,136.29,136.22,18.47739]
[1728583525101,1.83448738,136.29,136.19,18.3558]
[1728583525312,7.3406,136.23,136.19,18.3558]
[1728583525600,1.83511559,136.27,136.19,18.3558]
[1728583525800,7.3396,136.25,136.2,7.3417]
[1728583525978,7.3396,136.25,136.19,18.3558]
[1728583526301,7.339,136.26,136.21,7.3415]
[1728583526510,1.83511559,136.27,136.16,0.8460367]
[1728583526511,1.83511559,136.27,136.2,7.3419]
[1728583526678,7.3399,136.24,136.2,7.3419]
[1728583526996,20.17896425,136.29,136.2,18.3547]
[1728583526997,7.339,136.26,136.2,18.3547]
[1728583527185,1.83496425,136.29,136.17,76.51670689]
[1728583527392,1.83496425,136.29,136.16,0.8460367]
[1728583527704,15.6454,136.24,136.16,19.2064367]
[1728583527913,1.83552615,136.23,136.16,26.5505367]
[1728583528110,7.342,136.21,136.16,26.5505367]
[1728583528284,7.342,136.21,136.16,19.2064367]
[1728583528612,17.48087025,136.24,136.16,0.8460367]
[1728583528902,7.94457482,136.23,136.16,0.8460367]
[1728583529086,7.3415,136.22,136.16,8.1901367]
[1728583529307,6.109,136.27,136.16,0.8460367]
[1728583529500,9.17445061,136.26,136.16,0.8460367]
[1728583529725,9.17445061,136.26,136.21,7.3415]
[1728583530021,7.3394,136.26,136.22,0.12549]
[1728583530397,7.94395383,136.27,136.22,0.25098]
[1728583530398,13.4475,136.27,136.22,0.25098]
[1728583530592,15.6454,136.28,136.22,0.25098]
[1728583530924,13.4044,136.31,136.25,7.3393]
[1728583531102,7.3374,136.29,136.24,7.46529]
[1728583531300,9.17132122,136.3,136.25,7.3392]
[1728583531503,7.3368,136.3,136.26,0.12549]
[1728583531700,13.404,136.31,136.26,7.46419]
[1728583532518,7.3377,136.29,136.24,7.3398]
[1728583532705,7.9019064,136.31,136.22,0.12549]
[1728583532937,6.0677,136.31,136.27,7.3382]
[1728583533211,6.0677,136.31,136.25,18.3479]
[1728583533212,7.3374,136.29,136.25,0.12549]
[1728583533518,7.90199832,136.31,136.25,7.46469]
[1728583533722,7.90199832,136.31,136.27,0.12549]
[1728583534117,1.83423381,136.3,136.16,0.8460367]
[1728583534411,7.3396,136.25,136.2,7.3419]
[1728583534609,6.0677,136.31,136.2,7.3419]
[1728583534610,7.3393,136.26,136.2,7.342]
[1728583534927,7.3406,136.23,136.18,18.3572]
[1728583535224,1.83484695,136.25,136.18,25.7003]
[1728583535398,7.3411,136.22,136.18,18.3572]
[1728583535827,7.3406,136.23,136.18,25.7003]
[1728583536328,1.83516478,136.26,136.19,0.12549]
[1728583536629,7.3414,136.22,136.17,7.3434]